fUSD/lending_fUSD_20260612
["ID","MTS","AMOUNT","RATE_DAILY","PERIOD"]
[424886099,1781233851000,-446.98332086,0.00014466,2]
[424886082,1781233851000,-160.0,0.00014319,2]
[424886102,1781233851000,-150.0,0.00014487,2]
[424886081,1781233851000,-150.0,0.00014316,2]
[424886087,1781233851000,-10476.53150571,0.00014322,2]
[424886048,1781233851000,-150.0,0.00014079,2]
[424886058,1781233851000,-1063.13985874,0.00014176,5]
[424886057,1781233851000,-150.0,0.00014158,2]
[424886060,1781233851000,-169.83397,0.00014177,2]
[424886064,1781233851000,-150.0,0.00014237,2]
[424886063,1781233851000,-150.0,0.00014237,2]
[424886061,1781233851000,-10476.53150571,0.00014178,2]
[424886065,1781233851000,-150.0,0.00014237,2]
[424886066,1781233851000,-150.0,0.00014237,2]
[424886062,1781233851000,-150.0,0.00014198,2]
[424886067,1781233851000,-150.0,0.00014237,2]
[424886059,1781233851000,-171.310626,0.00014177,2]
[424886074,1781233851000,-707.03110338,0.0001425,2]
[424886075,1781233851000,-446.98332086,0.0001425,2]
[424886078,1781233851000,-785.45,0.00014276,2]
[424886076,1781233851000,-832.7182337,0.0001425,2]
[424886071,1781233851000,-160.0,0.00014248,2]
[424886079,1781233851000,-150.0,0.00014276,2]
[424886070,1781233851000,-167.981715,0.00014238,2]
[424886072,1781233851000,-176.242797,0.00014248,2]
[424886068,1781233851000,-160.0,0.00014238,2]
[424886069,1781233851000,-163.990857,0.00014238,2]
[424886073,1781233851000,-192.485595,0.00014248,2]
[424886085,1781233851000,-150.0,0.0001432,2]
[424886132,1781233852000,-255.0,0.00014713,2]
[424886139,1781233852000,-150.0,0.00014789,2]
[424886133,1781233852000,-303.54,0.00014714,2]
[424886134,1781233852000,-150.0,0.00014737,2]
[424886135,1781233852000,-150.0,0.0001475,2]
[424886138,1781233852000,-161.0,0.00014783,2]
[424886136,1781233852000,-303.54,0.00014755,2]
[424886137,1781233852000,-10476.53150571,0.00014756,2]
[424886140,1781233852000,-303.54,0.00014794,2]
[424886146,1781233852000,-5800.0,0.00014815,2]
[424886147,1781233852000,-150.0,0.0001482,2]
[424886141,1781233852000,-5800.0,0.00014798,2]
[424886149,1781233852000,-5800.0,0.00014823,2]
[424886148,1781233852000,-150.0,0.0001482,2]
[424886145,1781233852000,-308.02,0.00014814,2]
[424886144,1781233852000,-5800.0,0.00014806,2]
[424886143,1781233852000,-200.0,0.000148,5]
[424886131,1781233852000,-150.0,0.0001471,2]
[424886142,1781233852000,-700.0,0.000148,5]
[424886128,1781233852000,-700.0,0.000147,5]
[424886119,1781233852000,-150.0,0.00014612,2]
[424886126,1781233852000,-446.98332086,0.00014683,2]
[424886108,1781233852000,-303.54,0.00014515,2]
[424886109,1781233852000,-166.66,0.00014536,2]
[424886111,1781233852000,-308.02,0.00014543,2]
[424886112,1781233852000,-150.0,0.00014552,2]
[424886113,1781233852000,-303.54,0.00014571,2]
[424886110,1781233852000,-150.0,0.00014537,2]
[424886114,1781233852000,-250.0,0.00014574,2]
[424886115,1781233852000,-150.0,0.00014592,2]
[424886116,1781233852000,-3800.0,0.000146,5]
[424886118,1781233852000,-10476.53150571,0.00014611,2]
[424886117,1781233852000,-1100.0,0.000146,5]
[424886120,1781233852000,-303.54,0.00014623,2]
[424886121,1781233852000,-150.0,0.00014631,2]
[424886122,1781233852000,-150.0,0.00014653,2]
[424886123,1781233852000,-150.0,0.00014653,2]
[424886125,1781233852000,-150.0,0.00014671,2]
[424886127,1781233852000,-150.0,0.00014687,2]
[424886124,1781233852000,-303.54,0.0001467,2]
[424886129,1781233852000,-200.0,0.000147,5]
[424886130,1781233852000,-150.0,0.00014702,2]
[424886151,1781233852000,-303.54,0.00014831,2]
[424886150,1781233852000,-150.0,0.00014829,2]
[424886155,1781233852000,-5800.0,0.00014849,2]
[424886175,1781233852000,-500.0,0.00014899,2]
[424886176,1781233852000,-500.0,0.00014899,2]
[424886179,1781233852000,-10831.59005543,0.000149,2]
[424886182,1781233852000,-707.03110338,0.000149,2]
[424886183,1781233852000,-446.98332086,0.000149,2]
[424886181,1781233852000,-223.29404067,0.000149,3]
[424886180,1781233852000,-5800.0,0.000149,2]
[424886186,1781233852000,-832.7182337,0.000149,2]
[424886185,1781233852000,-200.0,0.000149,5]
[424886184,1781233852000,-700.0,0.000149,5]
[424886187,1781233852000,-10476.53150571,0.000149,2]
[424886189,1781233852000,-150.0,0.00014907,2]
[424886193,1781233852000,-1056.08,0.00014909,2]
[424886194,1781233852000,-500.0,0.00014909,2]
[424886191,1781233852000,-728.27,0.00014909,2]
[424886192,1781233852000,-761.22,0.00014909,2]
[424886190,1781233852000,-291.6690779,0.00014908,2]
[424886195,1781233852000,-1887.45,0.00014909,2]
[424886153,1781233852000,-150.0,0.00014836,2]
[424886174,1781233852000,-500.0,0.00014899,2]
[424886173,1781233852000,-500.0,0.00014899,2]
[424886188,1781233852000,-303.54,0.000149,2]
[424886177,1781233852000,-500.0,0.00014899,2]
[424886156,1781233852000,-5800.0,0.00014858,2]
[424886171,1781233852000,-500.0,0.00014899,2]
[424886159,1781233852000,-303.54,0.00014866,2]
[424886152,1781233852000,-5800.0,0.00014832,2]
[424886157,1781233852000,-150.0,0.00014861,2]
[424886154,1781233852000,-5800.0,0.00014841,2]
[424886161,1781233852000,-5800.0,0.00014874,2]
[424886160,1781233852000,-150.0,0.00014868,2]
[424886165,1781233852000,-761.22,0.00014899,2]
[424886158,1781233852000,-5800.0,0.00014866,2]
[424886163,1781233852000,-5800.0,0.00014891,2]
[424886164,1781233852000,-728.27,0.00014899,2]
[424886166,1781233852000,-1056.08,0.00014899,2]
[424886168,1781233852000,-1887.45,0.00014899,2]
[424886167,1781233852000,-500.0,0.00014899,2]
[424886178,1781233852000,-243055.43520343,0.000149,3]
[424886170,1781233852000,-500.0,0.00014899,2]
[424886162,1781233852000,-5800.0,0.00014883,2]
[424886169,1781233852000,-500.0,0.00014899,2]
[424886172,1781233852000,-500.0,0.00014899,2]
[424886237,1781233853000,-761.22,0.00014999,2]
[424886233,1781233853000,-761.22,0.00014999,2]
[424886231,1781233853000,-761.22,0.00014999,2]
[424886229,1781233853000,-761.22,0.00014999,2]
[424886227,1781233853000,-728.39339816,0.00014999,2]
[424886222,1781233853000,-728.27,0.00014999,2]
[424886230,1781233853000,-761.22,0.00014999,2]
[424886232,1781233853000,-761.22,0.00014999,2]
[424886239,1781233853000,-1056.08,0.00014999,2]
[424886228,1781233853000,-761.22,0.00014999,2]
[424886226,1781233853000,-728.27,0.00014999,2]
[424886238,1781233853000,-761.39,0.00014999,2]
[424886254,1781233853000,-500.0,0.00014999,2]
[424886235,1781233853000,-761.22,0.00014999,2]
[424886234,1781233853000,-761.22,0.00014999,2]
[424886243,1781233853000,-1056.08,0.00014999,2]
[424886236,1781233853000,-761.22,0.00014999,2]
[424886241,1781233853000,-1056.08,0.00014999,2]
[424886242,1781233853000,-1056.08,0.00014999,2]
[424886252,1781233853000,-500.0,0.00014999,2]
[424886245,1781233853000,-1056.08,0.00014999,2]
[424886251,1781233853000,-500.0,0.00014999,2]
[424886256,1781233853000,-500.0,0.00014999,2]
[424886247,1781233853000,-1056.08,0.00014999,2]
[424886225,1781233853000,-728.27,0.00014999,2]
[424886240,1781233853000,-1056.08,0.00014999,2]
[424886223,1781233853000,-728.27,0.00014999,2]
[424886200,1781233853000,-150.0,0.00014947,2]
[424886221,1781233853000,-728.27,0.00014999,2]
[424886198,1781233853000,-500.0,0.00014909,2]
[424886196,1781233853000,-500.0,0.00014909,2]
[424886197,1781233853000,-500.0,0.00014909,2]
[424886199,1781233853000,-303.54,0.00014933,2]
[424886202,1781233853000,-240.331087,0.0001496,2]
[424886203,1781233853000,-303.54,0.00014965,2]
[424886201,1781233853000,-223.623896,0.0001495,2]
[424886206,1781233853000,-282.8290565,0.00014986,2]
[424886209,1781233853000,-215.04143497,0.00014986,2]
[424886253,1781233853000,-500.0,0.00014999,2]
[424886208,1781233853000,-193.79231313,0.00014986,2]
[424886204,1781233853000,-284.03421377,0.00014986,2]
[424886207,1781233853000,-215.3825728,0.00014986,2]
[424886205,1781233853000,-249.66496614,0.00014986,2]
[424886210,1781233853000,-295.39287249,0.00014986,2]
[424886212,1781233853000,-500.0,0.00014988,2]
[424886214,1781233853000,-115976.93829048,0.00014989,2]
[424886215,1781233853000,-173.49935523,0.0001499,2]
[424886216,1781233853000,-303.54,0.00014995,2]
[424886211,1781233853000,-190.82024742,0.00014986,2]
[424886217,1781233853000,-728.27,0.00014999,2]
[424886213,1781233853000,-500.0,0.00014988,2]
[424886218,1781233853000,-728.27,0.00014999,2]
[424886219,1781233853000,-728.27,0.00014999,2]
[424886220,1781233853000,-728.27,0.00014999,2]
[424886224,1781233853000,-728.27,0.00014999,2]
[424886255,1781233853000,-500.0,0.00014999,2]
[424886297,1781233853000,-2000.0,0.00014999,2]
[424886246,1781233853000,-1056.08,0.00014999,2]
[424886283,1781233853000,-500.0,0.00014999,2]
[424886284,1781233853000,-500.0,0.00014999,2]
[424886282,1781233853000,-568.86606438,0.00014999,2]
[424886285,1781233853000,-500.0,0.00014999,2]
[424886290,1781233853000,-500.0,0.00014999,2]
[424886287,1781233853000,-555.64276628,0.00014999,2]
[424886288,1781233853000,-277.3797404,0.00014999,2]
[424886289,1781233853000,-1063.13985874,0.00014999,5]
[424886292,1781233853000,-500.0,0.00014999,2]
[424886291,1781233853000,-500.0,0.00014999,2]
[424886293,1781233853000,-500.0,0.00014999,2]
[424886294,1781233853000,-500.0,0.00014999,2]
[424886298,1781233853000,-500.0,0.00014999,2]
[424886299,1781233853000,-500.0,0.00014999,2]
[424886296,1781233853000,-545.09047538,0.00014999,2]
[424886301,1781233853000,-500.0,0.00014999,2]
[424886300,1781233853000,-500.0,0.00014999,2]
[424886302,1781233853000,-500.0,0.00014999,2]
[424886306,1781233853000,-500.0,0.00014999,2]
[424886303,1781233853000,-500.0,0.00014999,2]
[424886305,1781233853000,-500.0,0.00014999,2]
[424886307,1781233853000,-500.0,0.00014999,2]
[424886304,1781233853000,-500.0,0.00014999,2]
[424886308,1781233853000,-500.0,0.00014999,2]
[424886244,1781233853000,-1056.08,0.00014999,2]
[424886286,1781233853000,-500.0,0.00014999,2]
[424886281,1781233853000,-500.0,0.00014999,2]
[424886295,1781233853000,-500.0,0.00014999,2]
[424886277,1781233853000,-500.0,0.00014999,2]
[424886280,1781233853000,-500.0,0.00014999,2]
[424886248,1781233853000,-1056.08,0.00014999,2]
[424886249,1781233853000,-1056.08897472,0.00014999,2]
[424886250,1781233853000,-500.0,0.00014999,2]
[424886257,1781233853000,-500.0,0.00014999,2]
[424886265,1781233853000,-1887.45,0.00014999,2]
[424886262,1781233853000,-1887.45,0.00014999,2]
[424886258,1781233853000,-516.77,0.00014999,2]
[424886266,1781233853000,-1887.45,0.00014999,2]
[424886259,1781233853000,-1887.45,0.00014999,2]
[424886264,1781233853000,-1887.45,0.00014999,2]
[424886261,1781233853000,-1887.45,0.00014999,2]
[424886267,1781233853000,-1887.45,0.00014999,2]
[424886263,1781233853000,-1887.45,0.00014999,2]
[424886276,1781233853000,-500.0,0.00014999,2]
[424886260,1781233853000,-1887.45,0.00014999,2]
[424886275,1781233853000,-500.0,0.00014999,2]
[424886278,1781233853000,-500.0,0.00014999,2]
[424886274,1781233853000,-500.0,0.00014999,2]
[424886269,1781233853000,-1887.6893492,0.00014999,2]
[424886272,1781233853000,-329.2463426,0.00014999,2]
[424886273,1781233853000,-500.0,0.00014999,2]
[424886271,1781233853000,-500.0,0.00014999,2]
[424886279,1781233853000,-500.0,0.00014999,2]
[424886270,1781233853000,-500.0,0.00014999,2]
[424886268,1781233853000,-1887.45,0.00014999,2]
[424886330,1781233854000,-500.0,0.00014999,2]
[424886327,1781233854000,-500.0,0.00014999,2]
[424886336,1781233854000,-500.0,0.00014999,2]
[424886329,1781233854000,-500.0,0.00014999,2]
[424886333,1781233854000,-500.0,0.00014999,2]
[424886335,1781233854000,-500.0,0.00014999,2]
[424886334,1781233854000,-500.0,0.00014999,2]
[424886348,1781233854000,-500.0,0.00014999,2]
[424886331,1781233854000,-500.0,0.00014999,2]
[424886337,1781233854000,-500.0,0.00014999,2]
[424886338,1781233854000,-500.0,0.00014999,2]
[424886349,1781233854000,-500.0,0.00014999,2]
[424886326,1781233854000,-500.0,0.00014999,2]
[424886340,1781233854000,-500.0,0.00014999,2]
[424886332,1781233854000,-500.0,0.00014999,2]
[424886328,1781233854000,-500.0,0.00014999,2]
[424886312,1781233854000,-500.0,0.00014999,2]
[424886321,1781233854000,-500.0,0.00014999,2]
[424886344,1781233854000,-500.0,0.00014999,2]
[424886311,1781233854000,-500.0,0.00014999,2]
[424886313,1781233854000,-500.0,0.00014999,2]
[424886309,1781233854000,-500.0,0.00014999,2]
[424886310,1781233854000,-500.0,0.00014999,2]
[424886315,1781233854000,-500.0,0.00014999,2]
[424886322,1781233854000,-500.0,0.00014999,2]
[424886325,1781233854000,-500.0,0.00014999,2]
[424886317,1781233854000,-500.0,0.00014999,2]
[424886318,1781233854000,-500.0,0.00014999,2]
[424886316,1781233854000,-500.0,0.00014999,2]
[424886319,1781233854000,-500.0,0.00014999,2]
[424886320,1781233854000,-500.0,0.00014999,2]
[424886323,1781233854000,-500.0,0.00014999,2]
[424886314,1781233854000,-500.0,0.00014999,2]
[424886341,1781233854000,-500.0,0.00014999,2]
[424886324,1781233854000,-500.0,0.00014999,2]
[424886339,1781233854000,-500.0,0.00014999,2]
[424886363,1781233854000,-500.0,0.00014999,2]
[424886364,1781233854000,-500.0,0.00014999,2]
[424886366,1781233854000,-500.0,0.00014999,2]
[424886370,1781233854000,-6539432.18027065,0.00015,2]
[424886368,1781233854000,-500.0,0.00014999,2]
[424886365,1781233854000,-500.0,0.00014999,2]
[424886362,1781233854000,-500.0,0.00014999,2]
[424886369,1781233854000,-531.05929864,0.00014999,2]
[424886371,1781233854000,-500.0,0.00013699,2]
[424886372,1781233854000,-199.09666602,0.00013699,2]
[424886373,1781233854000,-582364.17412275,0.00015,2]
[424886374,1781233854000,-3375115.62706384,0.00015,2]
[424886375,1781233854000,-1790.14492676,0.00014343,2]
[424886377,1781233854000,-555.40146,0.00014343,2]
[424886367,1781233854000,-500.0,0.00014999,2]
[424886378,1781233854000,-1774.04385239,0.00014343,2]
[424886376,1781233854000,-651.07,0.00014343,2]
[424886358,1781233854000,-500.0,0.00014999,2]
[424886360,1781233854000,-500.0,0.00014999,2]
[424886342,1781233854000,-500.0,0.00014999,2]
[424886343,1781233854000,-500.0,0.00014999,2]
[424886347,1781233854000,-500.0,0.00014999,2]
[424886346,1781233854000,-500.0,0.00014999,2]
[424886351,1781233854000,-500.0,0.00014999,2]
[424886350,1781233854000,-500.0,0.00014999,2]
[424886345,1781233854000,-500.0,0.00014999,2]
[424886352,1781233854000,-500.0,0.00014999,2]
[424886355,1781233854000,-500.0,0.00014999,2]
[424886359,1781233854000,-500.0,0.00014999,2]
[424886356,1781233854000,-500.0,0.00014999,2]
[424886353,1781233854000,-500.0,0.00014999,2]
[424886354,1781233854000,-500.0,0.00014999,2]
[424886361,1781233854000,-500.0,0.00014999,2]
[424886357,1781233854000,-500.0,0.00014999,2]
[424886379,1781233855000,-3045.73704641,0.00014343,2]
[424886382,1781233855000,-8312.53134943,0.00015,2]
[424886380,1781233855000,-10523.48174822,0.00015,2]
[424886384,1781233855000,-387.372,0.00015,2]
[424886383,1781233855000,-2040.01731493,0.00015,2]
[424886385,1781233855000,-296.27468291,0.00015,2]
[424886381,1781233855000,-1770.48368772,0.00013599,2]
[424886386,1781233899000,-151.0,0.00012819,2]
[424886387,1781233953000,-151.0,0.00012819,2]
[424886388,1781233984000,1070.0,0.00023,21]
[424886389,1781234005000,-151.0,0.00012819,2]
[424886391,1781234059000,-467.92611924,0.00012719,2]
[424886394,1781234112000,-645.16997786,0.00012628,2]
[424886395,1781234131000,-645.16997786,0.00012628,2]
[424886396,1781234148000,-657.27004428,0.00012628,2]
[424886397,1781234201000,-184.26090347,0.00012719,2]
[424886398,1781234255000,-166.66,0.00011997,2]
[424886399,1781234354000,-166.66,0.0001225,2]
[424886403,1781234462000,-150.0,0.00012376,2]
[424886404,1781234517000,-166.66,0.00012502,2]
[424886405,1781234570000,-1909.13,0.00012614,2]
[424886406,1781234596000,-23194.59737936,0.0002,20]
[424886407,1781234624000,-1000.0,0.00012628,2]
[424886408,1781234677000,-150.0,0.00012628,2]
[424886409,1781234731000,-156.5,0.00012628,2]
[424886410,1781234784000,-173.28,0.00012628,2]
[424886412,1781234837000,-166.66,0.00012755,2]
[424886413,1781234890000,-150.0,0.00012628,2]
[424886414,1781234944000,-164.21,0.00012833,2]
[424886415,1781235003000,166.66,0.00011997,2]
[424886416,1781235003000,108.26488408,0.0001225,2]
[424886419,1781235031000,-58.39511592,0.0001225,2]
[424886430,1781235031000,-921.15,0.00013154,2]
[424886431,1781235031000,-166.66,0.0001326,2]
[424886429,1781235031000,-165.23,0.0001315,2]
[424886422,1781235031000,-15.43488408,0.00012755,2]
[424886420,1781235031000,-166.66,0.00012502,2]
[424886424,1781235031000,-921.15,0.00012834,2]
[424886423,1781235031000,-151.22511592,0.00012755,2]
[424886421,1781235031000,-1559.51,0.00012628,2]
[424886426,1781235031000,-215.99183634,0.00012839,2]
[424886428,1781235031000,-927.59,0.00013126,2]
[424886427,1781235031000,-166.66,0.00013007,2]
[424886432,1781235031000,-921.15,0.00013475,2]
[424886436,1781235031000,-3091.33817095,0.00013498,2]
[424886435,1781235031000,-6096.84633734,0.00013498,2]
[424886434,1781235031000,-60366.11967724,0.00013498,2]
[424886433,1781235031000,-173.49935523,0.00013488,2]
[424886425,1781235031000,-160.0,0.00012839,2]
[424886438,1781235032000,-1024.94913309,0.00013498,2]
[424886437,1781235032000,-6100.7,0.00013498,2]
[424886439,1781235032000,-1477.02291702,0.00013498,2]
[424886443,1781235032000,-164049.91364793,0.00013498,2]
[424886441,1781235032000,-2488.01544851,0.00013498,2]
[424886445,1781235032000,-41463.45279654,0.00013498,2]
[424886440,1781235032000,-2738.79182097,0.00013498,2]
[424886446,1781235032000,-191629.29267914,0.00013498,2]
[424886447,1781235032000,-41022.8373437,0.00013498,2]
[424886462,1781235032000,-69.13387141,0.00013498,2]
[424886442,1781235032000,-520920.88723704,0.00013498,2]
[424886511,1781235038000,-418.96279125,0.00013497,2]
[424886509,1781235038000,-332.17673612,0.00013497,2]
[424886510,1781235038000,-127.0953317,0.00013497,2]
[424886508,1781235038000,-150.72793218,0.00013497,2]
[424886513,1781235038000,-1543.20109112,0.00013498,2]
[424886518,1781235038000,-3087.75,0.00013498,2]
[424886515,1781235038000,-1859.1,0.00013498,2]
[424886514,1781235038000,-450.07284702,0.00013498,2]
[424886516,1781235038000,-2303.44018967,0.00013498,2]
[424886517,1781235038000,-449.99999999,0.00013498,2]
[424886512,1781235038000,-3051.03720877,0.00013498,2]
[424886542,1781235040000,-500.0,0.00013698,2]
[424886540,1781235040000,-500.0,0.00013698,2]
[424886537,1781235040000,-2931.14898212,0.00013598,2]
[424886536,1781235040000,-2000.0,0.00013598,2]
[424886535,1781235040000,-1074.79309893,0.00013598,2]
[424886533,1781235040000,-640.8934885,0.00013597,2]
[424886527,1781235040000,-500.0,0.00013597,2]
[424886526,1781235040000,-500.0,0.00013597,2]
[424886524,1781235040000,-500.0,0.00013597,2]
[424886532,1781235040000,-500.0,0.00013597,2]
[424886529,1781235040000,-500.0,0.00013597,2]
[424886531,1781235040000,-500.0,0.00013597,2]
[424886530,1781235040000,-500.0,0.00013597,2]
[424886541,1781235040000,-500.0,0.00013698,2]
[424886522,1781235040000,-3648.288,0.00013588,2]
[424886523,1781235040000,-150.0,0.00013596,2]
[424886521,1781235040000,-202.548,0.00013588,2]
[424886520,1781235040000,-1444716.09758255,0.00013498,2]
[424886528,1781235040000,-500.0,0.00013597,2]
[424886534,1781235040000,-314.64789684,0.00013598,2]
[424886525,1781235040000,-500.0,0.00013597,2]
[424886538,1781235040000,-574.57860626,0.00013698,2]
[424886559,1781235040000,-500.0,0.00013698,2]
[424886560,1781235040000,-500.0,0.00013698,2]
[424886558,1781235040000,-500.0,0.00013698,2]
[424886561,1781235040000,-500.0,0.00013698,2]
[424886556,1781235040000,-520.28473035,0.00013698,2]
[424886555,1781235040000,-500.0,0.00013698,2]
[424886557,1781235040000,-500.0,0.00013698,2]
[424886552,1781235040000,-500.0,0.00013698,2]
[424886554,1781235040000,-591.63575206,0.00013698,2]
[424886553,1781235040000,-500.0,0.00013698,2]
[424886547,1781235040000,-500.0,0.00013698,2]
[424886544,1781235040000,-364.35142186,0.00013698,2]
[424886543,1781235040000,-500.0,0.00013698,2]
[424886545,1781235040000,-526.03552456,0.00013698,2]
[424886548,1781235040000,-500.0,0.00013698,2]
[424886539,1781235040000,-500.0,0.00013698,2]
[424886546,1781235040000,-502.91402391,0.00013698,2]
[424886551,1781235040000,-500.0,0.00013698,2]
[424886550,1781235040000,-500.0,0.00013698,2]
[424886549,1781235040000,-500.0,0.00013698,2]
[424886590,1781235041000,-298.73640361,0.00013698,2]
[424886589,1781235041000,-500.0,0.00013698,2]
[424886594,1781235041000,-500.0,0.00013698,2]
[424886596,1781235041000,-551.49,0.00013698,2]
[424886600,1781235041000,-551.49,0.00013698,2]
[424886603,1781235041000,-551.49,0.00013698,2]
[424886601,1781235041000,-500.0,0.00013698,2]
[424886612,1781235041000,-500.0,0.00013698,2]
[424886611,1781235041000,-500.0,0.00013698,2]
[424886608,1781235041000,-500.0,0.00013698,2]
[424886607,1781235041000,-500.0,0.00013698,2]
[424886591,1781235041000,-551.49,0.00013698,2]
[424886620,1781235041000,-500.0,0.00013698,2]
[424886609,1781235041000,-500.0,0.00013698,2]
[424886605,1781235041000,-500.0,0.00013698,2]
[424886610,1781235041000,-500.0,0.00013698,2]
[424886614,1781235041000,-500.0,0.00013698,2]
[424886613,1781235041000,-500.0,0.00013698,2]
[424886616,1781235041000,-500.0,0.00013698,2]
[424886615,1781235041000,-500.0,0.00013698,2]
[424886621,1781235041000,-513.58758268,0.00013698,2]
[424886598,1781235041000,-551.49,0.00013698,2]
[424886622,1781235041000,-500.0,0.00013698,2]
[424886618,1781235041000,-325.58534652,0.00013698,2]
[424886623,1781235041000,-500.0,0.00013698,2]
[424886606,1781235041000,-500.0,0.00013698,2]
[424886593,1781235041000,-551.49,0.00013698,2]
[424886586,1781235041000,-515.12373106,0.00013698,2]
[424886599,1781235041000,-500.0,0.00013698,2]
[424886562,1781235041000,-410.11440897,0.00013698,2]
[424886573,1781235041000,-185.2409854,0.00013698,2]
[424886563,1781235041000,-500.0,0.00013698,2]
[424886574,1781235041000,-500.0,0.00013698,2]
[424886572,1781235041000,-500.0,0.00013698,2]
[424886564,1781235041000,-500.0,0.00013698,2]
[424886566,1781235041000,-500.0,0.00013698,2]
[424886571,1781235041000,-500.0,0.00013698,2]
[424886565,1781235041000,-500.0,0.00013698,2]
[424886570,1781235041000,-500.0,0.00013698,2]
[424886568,1781235041000,-500.0,0.00013698,2]
[424886569,1781235041000,-500.0,0.00013698,2]
[424886592,1781235041000,-500.0,0.00013698,2]
[424886577,1781235041000,-500.0,0.00013698,2]
[424886579,1781235041000,-500.0,0.00013698,2]
[424886576,1781235041000,-500.0,0.00013698,2]
[424886581,1781235041000,-500.0,0.00013698,2]
[424886619,1781235041000,-500.0,0.00013698,2]
[424886582,1781235041000,-500.0,0.00013698,2]
[424886580,1781235041000,-238.7383011,0.00013698,2]
[424886583,1781235041000,-500.0,0.00013698,2]
[424886584,1781235041000,-500.0,0.00013698,2]
[424886585,1781235041000,-500.0,0.00013698,2]
[424886588,1781235041000,-500.0,0.00013698,2]
[424886587,1781235041000,-500.0,0.00013698,2]
[424886597,1781235041000,-500.0,0.00013698,2]
[424886578,1781235041000,-500.0,0.00013698,2]
[424886617,1781235041000,-360.35654585,0.00013698,2]
[424886575,1781235041000,-500.0,0.00013698,2]
[424886628,1781235041000,-3249.31,0.00013698,2]
[424886654,1781235041000,-630.40804688,0.00013891,2]
[424886655,1781235041000,-1401.20101214,0.000139,2]
[424886660,1781235041000,-500.0,0.000139,2]
[424886671,1781235041000,-2005.94132076,0.00014204,2]
[424886670,1781235041000,-921.15,0.00014117,2]
[424886661,1781235041000,-500.0,0.000139,2]
[424886662,1781235041000,-614.41645061,0.000139,2]
[424886663,1781235041000,-800.0,0.000139,5]
[424886659,1781235041000,-500.0,0.000139,2]
[424886667,1781235041000,-500.0,0.00014032,2]
[424886665,1781235041000,-31680.53645014,0.0001399,2]
[424886664,1781235041000,-150.0,0.00013986,2]
[424886648,1781235041000,-921.15,0.00013796,2]
[424886669,1781235041000,-502.53527372,0.00014032,2]
[424886666,1781235041000,-250.0,0.00014,2]
[424886672,1781235041000,-1559.51,0.00014207,2]
[424886673,1781235041000,-551.49,0.0001442,2]
[424886674,1781235041000,-3249.31,0.0001442,2]
[424886675,1781235041000,-1074.79309889,0.00014498,2]
[424886677,1781235041000,-8686.0196,0.00014732,2]
[424886678,1781235041000,-927.59,0.00014767,2]
[424886680,1781235041000,-500.0,0.00014882,2]
[424886682,1781235041000,-500.0,0.00014899,2]
[424886679,1781235041000,-1300.0,0.000148,5]
[424886681,1781235041000,-286.06946144,0.00014896,2]
[424886624,1781235041000,-500.0,0.00013698,2]
[424886668,1781235041000,-500.0,0.00014032,2]
[424886657,1781235041000,-558.31250894,0.000139,2]